[Event "The Kvibergspelen 2024"]
[Site "Kviberg Park Hotel & Conference, Krutvagen 2, Gothenburg, Sweden"]
[Date "2024.09.06"]
[Round "2.8"]
[White "Andersson, Johan"]
[Black "Larsen, Linus"]
[Result "1-0"]
[TimeControl "15 minutes + 5 seconds per move from move one (Round 1 - 4) / 90 minutes + 30 seconds per move from move one (Round 5 - 8)"]
[WhiteFideId "1703935"]
[BlackFideId "1715275"]
[WhiteElo "2158"]
[BlackElo "1952"]

1. e4 {[%clk 00:15:07]} {[%emt 00:00:03]} e5 {[%clk 00:15:08]} {[%emt
00:00:03]} 2. Nf3 {[%clk 00:15:08]} {[%emt 00:00:03]} Nc6 {[%clk 00:15:12]}
{[%emt 00:00:02]} 3. c3 {[%clk 00:15:10]} {[%emt 00:00:03]} Nf6 {[%clk
00:15:03]} {[%emt 00:00:15]} 4. d4 {[%clk 00:15:11]} {[%emt 00:00:03]} Nxe4
{[%clk 00:14:59]} {[%emt 00:00:09]} 5. d5 {[%clk 00:15:10]} {[%emt 00:00:05]}
Ne7 {[%clk 00:15:02]} {[%emt 00:00:03]} 6. Nxe5 {[%clk 00:15:10]} {[%emt
00:00:06]} Ng6 {[%clk 00:15:04]} {[%emt 00:00:02]} 7. Qf3 {[%clk 00:14:18]}
{[%emt 00:00:56]} Nxe5 {[%clk 00:13:11]} {[%emt 00:01:59]} 8. Qxe4 {[%clk
00:14:20]} {[%emt 00:00:02]} Qe7 {[%clk 00:13:15]} {[%emt 00:00:02]} 9. Be3
{[%clk 00:14:07]} {[%emt 00:00:16]} d6 {[%clk 00:12:48]} {[%emt 00:00:34]} 10.
Nd2 {[%clk 00:12:58]} {[%emt 00:01:14]} Ng6 {[%clk 00:08:55]} {[%emt 00:03:58]}
11. Qa4+ {[%clk 00:12:10]} {[%emt 00:00:53]} Bd7 {[%clk 00:08:39]} {[%emt
00:00:21]} 12. Qb3 {[%clk 00:11:31]} {[%emt 00:00:43]} O-O-O {[%clk 00:08:30]}
{[%emt 00:00:15]} 13. O-O-O {[%clk 00:11:03]} {[%emt 00:00:33]} Kb8 {[%clk
00:08:30]} {[%emt 00:00:05]} 14. Qa3 {[%clk 00:08:21]} {[%emt 00:02:47]} b6
{[%clk 00:07:54]} {[%emt 00:00:42]} 15. Ba6 {[%clk 00:08:20]} {[%emt 00:00:06]}
f5 {[%clk 00:07:42]} {[%emt 00:00:16]} 16. Rhe1 {[%clk 00:08:14]} {[%emt
00:00:10]} Qf7 {[%clk 00:07:13]} {[%emt 00:00:35]} 17. Nb3 {[%clk 00:07:09]}
{[%emt 00:01:10]} Re8 {[%clk 00:06:22]} {[%emt 00:00:57]} 18. Na5 {[%clk
00:06:26]} {[%emt 00:00:47]} f4 {[%clk 00:05:33]} {[%emt 00:00:54]} 19. Bd4
{[%clk 00:05:53]} {[%emt 00:00:38]} Rxe1 {[%clk 00:05:17]} {[%emt 00:00:21]} 20.
Rxe1 {[%clk 00:05:54]} {[%emt 00:00:04]} Qxd5 {[%clk 00:05:17]} {[%emt
00:00:05]} 21. Nb3 {[%clk 00:04:10]} {[%emt 00:01:48]} Ne5 {[%clk 00:05:17]}
{[%emt 00:00:05]} 22. Rd1 {[%clk 00:03:48]} {[%emt 00:00:28]} Nc4 {[%clk
00:04:31]} {[%emt 00:00:51]} 23. Qb4 {[%clk 00:03:32]} {[%emt 00:00:20]} Na5
{[%clk 00:02:00]} {[%emt 00:02:37]} 24. Bxb6 {[%clk 00:03:13]} {[%emt
00:00:24]} Nxb3+ {[%clk 00:01:15]} {[%emt 00:00:51]} 25. axb3 {[%clk 00:03:14]}
{[%emt 00:00:03]} Qxd1+ {[%clk 00:01:03]} {[%emt 00:00:17]} 26. Kxd1 {[%clk
00:03:17]} {[%emt 00:00:01]} axb6 {[%clk 00:01:06]} {[%emt 00:00:04]} 27. Qxf4
{[%clk 00:03:10]} {[%emt 00:00:10]} Ka7 {[%clk 00:00:17]} {[%emt 00:00:54]} 28.
Bd3 {[%clk 00:03:02]} {[%emt 00:00:13]} Be7 {[%clk 00:00:18]} {[%emt 00:00:04]}
29. Qf7 {[%clk 00:02:56]} {[%emt 00:00:11]} Re8 {[%clk 00:00:09]} {[%emt
00:00:14]} 30. Bxh7 {[%clk 00:02:49]} {[%emt 00:00:13]} Bc6 {[%clk 00:00:07]}
{[%emt 00:00:07]} 31. Be4 {[%clk 00:02:41]} {[%emt 00:00:12]} Bd7 {[%clk
00:00:00]} 1-0

[Event "The Kvibergspelen 2024"]
[Site "Kviberg Park Hotel & Conference, Krutvagen 2, Gothenburg, Sweden"]
[Date "2024.09.06"]
[Round "2.9"]
[White "Johansson, Roy"]
[Black "Muntean, Victor"]
[Result "0-1"]
[TimeControl "15 minutes + 5 seconds per move from move one (Round 1 - 4) / 90 minutes + 30 seconds per move from move one (Round 5 - 8)"]
[WhiteFideId "1745972"]
[BlackFideId "1054414"]
[WhiteElo "1936"]
[BlackElo "2158"]

1. d4 {[%clk 00:15:08]} {[%emt 00:00:02]} Nf6 {[%clk 00:15:07]} {[%emt
00:00:05]} 2. Bf4 {[%clk 00:15:10]} {[%emt 00:00:02]} g6 {[%clk 00:15:10]}
{[%emt 00:00:03]} 3. e3 {[%clk 00:15:13]} {[%emt 00:00:02]} Bg7 {[%clk
00:15:13]} {[%emt 00:00:01]} 4. h3 {[%clk 00:15:16]} O-O {[%clk 00:15:16]}
{[%emt 00:00:02]} 5. Nf3 {[%clk 00:15:19]} {[%emt 00:00:02]} d6 {[%clk
00:15:20]} {[%emt 00:00:01]} 6. Be2 {[%clk 00:15:22]} {[%emt 00:00:02]} Nbd7
{[%clk 00:15:18]} {[%emt 00:00:07]} 7. O-O {[%clk 00:15:23]} {[%emt 00:00:03]}
c5 {[%clk 00:15:13]} {[%emt 00:00:10]} 8. c3 {[%clk 00:15:26]} {[%emt
00:00:03]} Qb6 {[%clk 00:14:47]} {[%emt 00:00:31]} 9. Qb3 {[%clk 00:15:23]}
{[%emt 00:00:08]} Re8 {[%clk 00:14:22]} {[%emt 00:00:31]} 10. Nbd2 {[%clk
00:15:16]} {[%emt 00:00:11]} e5 {[%clk 00:13:44]} {[%emt 00:00:42]} 11. Bh2
{[%clk 00:15:07]} {[%emt 00:00:15]} e4 {[%clk 00:13:27]} {[%emt 00:00:22]} 12.
Ne1 {[%clk 00:14:52]} {[%emt 00:00:20]} cxd4 {[%clk 00:12:41]} {[%emt
00:00:51]} 13. cxd4 {[%clk 00:14:17]} {[%emt 00:00:40]} d5 {[%clk 00:12:08]}
{[%emt 00:00:39]} 14. Nc2 {[%clk 00:13:37]} {[%emt 00:00:44]} Bf8 {[%clk
00:11:41]} {[%emt 00:00:32]} 15. Rac1 {[%clk 00:13:14]} {[%emt 00:00:28]} a5
{[%clk 00:11:26]} {[%emt 00:00:20]} 16. Qxb6 {[%clk 00:13:05]} {[%emt
00:00:14]} Nxb6 {[%clk 00:11:30]} {[%emt 00:00:02]} 17. Na3 {[%clk 00:12:44]}
{[%emt 00:00:25]} Bxa3 {[%clk 00:10:58]} {[%emt 00:00:37]} 18. bxa3 {[%clk
00:12:46]} {[%emt 00:00:03]} Bd7 {[%clk 00:10:50]} {[%emt 00:00:13]} 19. Rb1
{[%clk 00:12:18]} {[%emt 00:00:33]} Re6 {[%clk 00:10:30]} {[%emt 00:00:25]} 20.
Nb3 {[%clk 00:12:15]} {[%emt 00:00:07]} Na4 {[%clk 00:10:24]} {[%emt 00:00:11]}
21. Rfc1 {[%clk 00:12:01]} {[%emt 00:00:19]} Rc6 {[%clk 00:10:02]} {[%emt
00:00:28]} 22. Be5 {[%clk 00:11:33]} {[%emt 00:00:33]} Ne8 {[%clk 00:08:24]}
{[%emt 00:01:44]} 23. Rxc6 {[%clk 00:11:16]} {[%emt 00:00:21]} Bxc6 {[%clk
00:08:28]} {[%emt 00:00:02]} 24. Rc1 {[%clk 00:11:07]} {[%emt 00:00:13]} f6
{[%clk 00:08:29]} {[%emt 00:00:04]} 25. Bg3 {[%clk 00:11:07]} {[%emt 00:00:05]}
Ng7 {[%clk 00:08:10]} {[%emt 00:00:23]} 26. Nc5 {[%clk 00:10:57]} {[%emt
00:00:15]} Nxc5 {[%clk 00:08:08]} {[%emt 00:00:08]} 27. Rxc5 {[%clk 00:10:58]}
{[%emt 00:00:04]} Ne6 {[%clk 00:08:12]} {[%emt 00:00:01]} 28. Rc1 {[%clk
00:10:34]} {[%emt 00:00:28]} Kf7 {[%clk 00:08:03]} {[%emt 00:00:15]} 29. Bg4
{[%clk 00:10:01]} {[%emt 00:00:37]} f5 {[%clk 00:07:58]} {[%emt 00:00:10]} 30.
Bd1 {[%clk 00:09:57]} {[%emt 00:00:10]} Ra6 {[%clk 00:07:35]} {[%emt 00:00:28]}
31. Rb1 {[%clk 00:09:47]} {[%emt 00:00:15]} b5 {[%clk 00:07:02]} {[%emt
00:00:38]} 32. Be2 {[%clk 00:09:42]} {[%emt 00:00:10]} Rb6 {[%clk 00:07:06]}
{[%emt 00:00:02]} 33. Be5 {[%clk 00:09:21]} {[%emt 00:00:25]} Nf8 {[%clk
00:06:38]} {[%emt 00:00:32]} 34. Bc7 {[%clk 00:09:17]} {[%emt 00:00:09]} Rb7
{[%clk 00:05:38]} {[%emt 00:01:07]} 35. Bxa5 {[%clk 00:09:18]} {[%emt
00:00:03]} Ra7 {[%clk 00:04:22]} {[%emt 00:01:21]} 36. Bb4 {[%clk 00:09:20]}
{[%emt 00:00:04]} Nd7 {[%clk 00:04:20]} {[%emt 00:00:06]} 37. Rc1 {[%clk
00:09:11]} {[%emt 00:00:13]} Ra6 {[%clk 00:04:17]} {[%emt 00:00:09]} 38. Kh2
{[%clk 00:07:41]} {[%emt 00:01:35]} Nb8 {[%clk 00:03:55]} {[%emt 00:00:26]} 39.
Kg3 {[%clk 00:07:22]} {[%emt 00:00:24]} Ke6 {[%clk 00:03:41]} {[%emt 00:00:19]}
40. h4 {[%clk 00:07:18]} {[%emt 00:00:09]} Ra7 {[%clk 00:03:17]} {[%emt
00:00:29]} 41. Rc5 {[%clk 00:07:06]} {[%emt 00:00:16]} Rb7 {[%clk 00:03:15]}
{[%emt 00:00:08]} 42. h5 {[%clk 00:06:47]} {[%emt 00:00:23]} g5 {[%clk
00:03:05]} {[%emt 00:00:16]} 43. f3 {[%clk 00:05:34]} {[%emt 00:01:18]} Kf6
{[%clk 00:02:32]} {[%emt 00:00:38]} 44. fxe4 {[%clk 00:05:31]} {[%emt
00:00:09]} dxe4 {[%clk 00:02:25]} {[%emt 00:00:11]} 45. d5 {[%clk 00:05:17]}
{[%emt 00:00:19]} Bd7 {[%clk 00:02:29]} {[%emt 00:00:01]} 46. d6 {[%clk
00:05:16]} {[%emt 00:00:05]} Na6 {[%clk 00:02:05]} {[%emt 00:00:30]} 47. Rc2
{[%clk 00:04:40]} {[%emt 00:00:41]} Rb6 {[%clk 00:02:04]} {[%emt 00:00:05]} 48.
Rd2 {[%clk 00:04:33]} {[%emt 00:00:12]} Ke6 {[%clk 00:01:57]} {[%emt 00:00:12]}
49. Bd1 {[%clk 00:04:33]} {[%emt 00:00:05]} Nxb4 {[%clk 00:01:44]} {[%emt
00:00:19]} 50. axb4 {[%clk 00:04:36]} Ke5 {[%clk 00:01:31]} {[%emt 00:00:19]}
51. Bb3 {[%clk 00:04:32]} {[%emt 00:00:09]} f4+ {[%clk 00:01:34]} {[%emt
00:00:02]} 52. exf4+ {[%clk 00:04:15]} {[%emt 00:02:48]} gxf4+ {[%clk
00:02:36]} {[%emt 00:00:02]} 53. Kg4 {[%clk 00:04:15]} 0-1

[Event "The Kvibergspelen 2024"]
[Site "Kviberg Park Hotel & Conference, Krutvagen 2, Gothenburg, Sweden"]
[Date "2024.09.06"]
[Round "2.10"]
[White "Mashhadi, Peyman"]
[Black "Stedman, Theodor"]
[Result "1-0"]
[TimeControl "15 minutes + 5 seconds per move from move one (Round 1 - 4) / 90 minutes + 30 seconds per move from move one (Round 5 - 8)"]
[WhiteFideId "1768581"]
[BlackFideId "1756230"]
[WhiteElo "2148"]
[BlackElo "1932"]

1. Nf3 {[%clk 00:15:05]} {[%emt 00:00:04]} d5 {[%clk 00:15:05]} {[%emt
00:00:06]} 2. c4 {[%clk 00:15:05]} {[%emt 00:00:05]} e6 {[%clk 00:15:04]}
{[%emt 00:00:06]} 3. d4 {[%clk 00:15:08]} {[%emt 00:00:02]} Nf6 {[%clk
00:15:05]} {[%emt 00:00:05]} 4. g3 {[%clk 00:15:10]} {[%emt 00:00:02]} c6
{[%clk 00:15:07]} {[%emt 00:00:04]} 5. Bg2 {[%clk 00:15:12]} {[%emt 00:00:02]}
Bd6 {[%clk 00:14:51]} {[%emt 00:00:21]} 6. O-O {[%clk 00:14:52]} {[%emt
00:00:25]} O-O {[%clk 00:14:53]} {[%emt 00:00:02]} 7. Nc3 {[%clk 00:14:50]}
{[%emt 00:00:07]} Qc7 {[%clk 00:14:29]} {[%emt 00:00:30]} 8. c5 {[%clk
00:14:26]} {[%emt 00:00:29]} Be7 {[%clk 00:14:31]} {[%emt 00:00:02]} 9. a3
{[%clk 00:13:50]} {[%emt 00:00:42]} a5 {[%clk 00:14:27]} {[%emt 00:00:10]} 10.
Bf4 {[%clk 00:12:48]} {[%emt 00:01:05]} Qd8 {[%clk 00:14:18]} {[%emt 00:00:15]}
11. Na4 {[%clk 00:11:39]} {[%emt 00:01:13]} Nbd7 {[%clk 00:14:13]} {[%emt
00:00:10]} 12. Qb3 {[%clk 00:10:56]} {[%emt 00:00:48]} Ne4 {[%clk 00:13:41]}
{[%emt 00:00:37]} 13. Ne5 {[%clk 00:10:00]} {[%emt 00:01:01]} Nxe5 {[%clk
00:12:27]} {[%emt 00:01:20]} 14. Bxe4 {[%clk 00:09:16]} {[%emt 00:00:49]} Nc4
{[%clk 00:11:45]} {[%emt 00:00:47]} 15. Rfd1 {[%clk 00:07:58]} {[%emt
00:01:22]} g5 {[%clk 00:10:46]} {[%emt 00:01:04]} 16. Bc1 {[%clk 00:07:40]}
{[%emt 00:00:23]} Rb8 {[%clk 00:09:13]} {[%emt 00:01:39]} 17. Bd3 {[%clk
00:06:56]} {[%emt 00:00:49]} b5 {[%clk 00:09:05]} {[%emt 00:00:13]} 18. Nc3
{[%clk 00:06:07]} {[%emt 00:00:54]} e5 {[%clk 00:07:50]} {[%emt 00:01:20]} 19.
Bxc4 {[%clk 00:05:20]} {[%emt 00:00:52]} dxc4 {[%clk 00:07:48]} {[%emt
00:00:07]} 20. Qc2 {[%clk 00:05:23]} {[%emt 00:00:02]} exd4 {[%clk 00:07:42]}
{[%emt 00:00:11]} 21. Ne4 {[%clk 00:04:03]} {[%emt 00:01:25]} f5 {[%clk
00:07:37]} {[%emt 00:00:09]} 22. Nd6 {[%clk 00:03:55]} {[%emt 00:00:14]} Bxd6
{[%clk 00:06:33]} {[%emt 00:01:09]} 23. Rxd4 {[%clk 00:03:53]} {[%emt
00:00:06]} f4 {[%clk 00:05:27]} {[%emt 00:01:11]} 24. Rxd6 {[%clk 00:03:42]}
{[%emt 00:00:17]} Qe7 {[%clk 00:04:38]} {[%emt 00:00:53]} 25. b3 {[%clk
00:03:12]} {[%emt 00:00:36]} Qe5 {[%clk 00:03:55]} {[%emt 00:00:48]} 26. Bb2
{[%clk 00:02:54]} {[%emt 00:00:22]} cxb3 {[%clk 00:02:49]} {[%emt 00:01:11]} 27.
Qxb3+ {[%clk 00:02:26]} {[%emt 00:00:33]} Be6 {[%clk 00:02:43]} {[%emt
00:00:12]} 28. Rxe6 {[%clk 00:02:16]} {[%emt 00:00:14]} Qd5 {[%clk 00:02:26]}
{[%emt 00:00:22]} 29. Qc3 {[%clk 00:01:58]} {[%emt 00:00:23]} Rb7 {[%clk
00:02:13]} {[%emt 00:00:18]} 30. Qh8+ {[%clk 00:01:51]} {[%emt 00:00:12]} Kf7
{[%clk 00:02:13]} {[%emt 00:00:06]} 31. Rf6+ {[%clk 00:01:48]} 1-0

[Event "The Kvibergspelen 2024"]
[Site "Kviberg Park Hotel & Conference, Krutvagen 2, Gothenburg, Sweden"]
[Date "2024.09.06"]
[Round "2.11"]
[White "Harila, Per"]
[Black "Frank, Anton"]
[Result "1-0"]
[TimeControl "15 minutes + 5 seconds per move from move one (Round 1 - 4) / 90 minutes + 30 seconds per move from move one (Round 5 - 8)"]
[WhiteFideId "1707248"]
[BlackFideId "1752383"]
[WhiteElo "1922"]
[BlackElo "2142"]

1. d4 {[%clk 00:15:07]} {[%emt 00:00:02]} d5 {[%clk 00:15:09]} {[%emt
00:00:01]} 2. c4 {[%clk 00:15:10]} {[%emt 00:00:03]} e6 {[%clk 00:15:12]}
{[%emt 00:00:01]} 3. Nc3 {[%clk 00:15:05]} {[%emt 00:00:11]} c5 {[%clk
00:15:16]} 4. cxd5 {[%clk 00:15:00]} {[%emt 00:00:10]} cxd4 {[%clk 00:15:19]}
{[%emt 00:00:02]} 5. Qa4+ {[%clk 00:15:02]} {[%emt 00:00:03]} Bd7 {[%clk
00:15:23]} {[%emt 00:00:01]} 6. Qxd4 {[%clk 00:15:04]} {[%emt 00:00:02]} exd5
{[%clk 00:15:26]} {[%emt 00:00:02]} 7. Qxd5 {[%clk 00:15:06]} {[%emt 00:00:04]}
Nf6 {[%clk 00:15:29]} {[%emt 00:00:01]} 8. Qb3 {[%clk 00:14:48]} {[%emt
00:00:24]} Na6 {[%clk 00:15:31]} {[%emt 00:00:02]} 9. Nf3 {[%clk 00:13:51]}
{[%emt 00:01:02]} Nc5 {[%clk 00:15:33]} {[%emt 00:00:03]} 10. Qc2 {[%clk
00:13:52]} {[%emt 00:00:03]} Rc8 {[%clk 00:15:33]} {[%emt 00:00:06]} 11. g3
{[%clk 00:12:46]} {[%emt 00:01:11]} Nce4 {[%clk 00:15:03]} {[%emt 00:00:35]} 12.
Bg2 {[%clk 00:12:23]} {[%emt 00:00:28]} Bb4 {[%clk 00:14:36]} {[%emt 00:00:32]}
13. Bd2 {[%clk 00:12:01]} {[%emt 00:00:27]} O-O {[%clk 00:13:59]} {[%emt
00:00:42]} 14. O-O {[%clk 00:11:53]} {[%emt 00:00:13]} Bf5 {[%clk 00:13:54]}
{[%emt 00:00:10]} 15. Qa4 {[%clk 00:07:39]} {[%emt 00:04:19]} Bxc3 {[%clk
00:11:59]} {[%emt 00:02:00]} 16. Bxc3 {[%clk 00:07:39]} {[%emt 00:00:05]} Nxc3
{[%clk 00:12:02]} {[%emt 00:00:02]} 17. bxc3 {[%clk 00:07:41]} {[%emt
00:00:03]} a6 {[%clk 00:11:43]} {[%emt 00:00:24]} 18. c4 {[%clk 00:07:09]}
{[%emt 00:00:38]} Be4 {[%clk 00:11:25]} {[%emt 00:00:22]} 19. Rac1 {[%clk
00:07:01]} {[%emt 00:00:13]} Qc7 {[%clk 00:11:21]} {[%emt 00:00:09]} 20. Qa3
{[%clk 00:05:43]} {[%emt 00:01:23]} Rfd8 {[%clk 00:11:14]} {[%emt 00:00:11]} 21.
e3 {[%clk 00:05:04]} {[%emt 00:00:45]} Bd3 {[%clk 00:10:31]} {[%emt 00:00:48]}
22. Rfd1 {[%clk 00:05:02]} {[%emt 00:00:07]} Bxc4 {[%clk 00:10:28]} {[%emt
00:00:09]} 23. Rxd8+ {[%clk 00:04:47]} {[%emt 00:00:19]} Qxd8 {[%clk 00:09:49]}
{[%emt 00:00:45]} 24. Nd4 {[%clk 00:04:33]} {[%emt 00:00:19]} Bd5 {[%clk
00:09:37]} {[%emt 00:00:16]} 25. Bxd5 {[%clk 00:03:58]} {[%emt 00:00:41]} Rxc1+
{[%clk 00:09:25]} {[%emt 00:00:17]} 26. Qxc1 {[%clk 00:04:01]} {[%emt
00:00:02]} Nxd5 {[%clk 00:09:28]} {[%emt 00:00:02]} 27. Qc5 {[%clk 00:03:52]}
{[%emt 00:00:09]} g6 {[%clk 00:09:16]} {[%emt 00:00:21]} 28. a4 {[%clk
00:03:35]} {[%emt 00:00:23]} Qd7 {[%clk 00:08:55]} {[%emt 00:00:25]} 29. a5
{[%clk 00:03:27]} {[%emt 00:00:13]} Nf6 {[%clk 00:08:53]} {[%emt 00:00:07]} 30.
Kg2 {[%clk 00:02:23]} {[%emt 00:01:10]} h5 {[%clk 00:08:32]} {[%emt 00:00:25]}
31. h4 {[%clk 00:02:24]} {[%emt 00:00:05]} Kg7 {[%clk 00:08:26]} {[%emt
00:00:11]} 32. f3 {[%clk 00:02:05]} {[%emt 00:00:23]} Nd5 {[%clk 00:06:44]}
{[%emt 00:01:47]} 33. e4 {[%clk 00:01:50]} {[%emt 00:00:21]} Ne7 {[%clk
00:06:34]} {[%emt 00:00:14]} 34. Qe5+ {[%clk 00:01:40]} {[%emt 00:00:16]} Kh7
{[%clk 00:06:36]} {[%emt 00:00:02]} 35. Qf6 {[%clk 00:01:36]} {[%emt 00:00:09]}
Ng8 {[%clk 00:05:18]} {[%emt 00:01:23]} 36. Qe5 {[%clk 00:01:33]} {[%emt
00:00:08]} Ne7 {[%clk 00:04:14]} {[%emt 00:01:10]} 37. Qf6 {[%clk 00:01:36]}
{[%emt 00:00:01]} Ng8 {[%clk 00:02:59]} {[%emt 00:01:21]} 38. Qe5 {[%clk
00:01:39]} Qc8 {[%clk 00:00:38]} {[%emt 00:02:27]} 39. Qd5 {[%clk 00:01:32]}
{[%emt 00:00:12]} Kg7 {[%clk 00:00:36]} {[%emt 00:00:07]} 40. Qe5+ {[%clk
00:01:34]} {[%emt 00:00:01]} Kh7 {[%clk 00:00:24]} {[%emt 00:00:17]} 41. Qd5
{[%clk 00:01:33]} {[%emt 00:00:06]} Qc7 {[%clk 00:00:18]} {[%emt 00:00:11]} 42.
e5 {[%clk 00:00:53]} {[%emt 00:00:45]} Qe7 {[%clk 00:00:16]} {[%emt 00:00:08]}
43. f4 {[%clk 00:00:38]} {[%emt 00:00:19]} Kg7 {[%clk 00:00:15]} {[%emt
00:00:06]} 44. f5 {[%clk 00:00:41]} {[%emt 00:00:03]} Kh7 {[%clk 00:00:18]}
{[%emt 00:00:02]} 45. fxg6+ {[%clk 00:00:35]} {[%emt 00:00:11]} fxg6 {[%clk
00:00:22]} {[%emt 00:00:01]} 46. Qd6 {[%clk 00:00:27]} {[%emt 00:00:13]} Qxd6
{[%clk 00:00:20]} {[%emt 00:00:06]} 47. exd6 {[%clk 00:00:32]} {[%emt
00:00:01]} Nf6 {[%clk 00:00:24]} {[%emt 00:00:01]} 48. Ne6 {[%clk 00:00:32]}
{[%emt 00:00:04]} Kg8 {[%clk 00:00:24]} {[%emt 00:00:06]} 49. Nd8 {[%clk
00:00:35]} {[%emt 00:00:02]} Kf8 {[%clk 00:00:25]} {[%emt 00:00:04]} 50. Nxb7
{[%clk 00:00:39]} Ke8 {[%clk 00:00:29]} {[%emt 00:00:01]} 51. Nc5 {[%clk
00:00:42]} {[%emt 00:00:01]} Kd8 {[%clk 00:00:16]} {[%emt 00:00:19]} 52. Kf3
{[%clk 00:00:40]} {[%emt 00:00:06]} Nd7 {[%clk 00:00:16]} {[%emt 00:00:05]} 53.
Nxa6 {[%clk 00:00:38]} {[%emt 00:00:07]} Kc8 {[%clk 00:00:18]} {[%emt
00:00:03]} 54. Kf4 {[%clk 00:00:39]} {[%emt 00:00:04]} Kb7 {[%clk 00:00:22]}
{[%emt 00:00:02]} 55. Nb4 {[%clk 00:00:41]} {[%emt 00:00:02]} Nc5 {[%clk
00:00:15]} {[%emt 00:00:12]} 56. Kg5 {[%clk 00:00:39]} {[%emt 00:00:07]} Ne4+
{[%clk 00:00:19]} {[%emt 00:00:01]} 57. Kxg6 {[%clk 00:00:38]} {[%emt
00:00:06]} Nxg3 {[%clk 00:00:23]} {[%emt 00:00:01]} 58. a6+ {[%clk 00:00:38]}
{[%emt 00:00:06]} Ka7 {[%clk 00:00:25]} {[%emt 00:00:03]} 59. d7 {[%clk
00:00:40]} {[%emt 00:00:02]} Ne4 {[%clk 00:00:26]} {[%emt 00:00:04]} 60. d8=Q
{[%clk 00:00:33]} {[%emt 00:00:13]} Nc5 {[%clk 00:00:28]} {[%emt 00:00:02]} 61.
Qd4 {[%clk 00:00:34]} {[%emt 00:00:04]} Kb6 {[%clk 00:00:32]} {[%emt 00:00:01]}
62. Qxc5+ {[%clk 00:00:36]} {[%emt 00:00:03]} Kxc5 {[%clk 00:00:32]} {[%emt
00:00:05]} 63. a7 {[%clk 00:00:40]} {[%emt 00:00:02]} Kb6 {[%clk 00:00:34]}
{[%emt 00:00:03]} 64. a8=Q {[%clk 00:00:40]} {[%emt 00:00:06]} Kc7 {[%clk
00:00:38]} 65. Qa5+ {[%clk 00:00:40]} {[%emt 00:00:04]} Kb7 {[%clk 00:00:42]}
66. Qxh5 {[%clk 00:00:43]} {[%emt 00:00:02]} Ka7 {[%clk 00:00:47]} {[%emt
00:00:01]} 67. Qd5 {[%clk 00:00:44]} {[%emt 00:00:03]} Kb6 {[%clk 00:00:51]}
{[%emt 00:00:02]} 68. h5 {[%clk 00:00:47]} {[%emt 00:00:02]} Ka7 {[%clk
00:00:55]} {[%emt 00:00:01]} 69. h6 {[%clk 00:00:51]} {[%emt 00:00:01]} Kb6
{[%clk 00:00:58]} {[%emt 00:00:03]} 70. h7 {[%clk 00:00:52]} {[%emt 00:00:03]}
Kc7 {[%clk 00:01:01]} {[%emt 00:00:01]} 71. h8=Q {[%clk 00:00:54]} {[%emt
00:00:04]} Kb6 {[%clk 00:01:06]} 72. Qf6+ {[%clk 00:00:56]} {[%emt 00:00:02]}
Kc7 {[%clk 00:01:10]} {[%emt 00:00:01]} 73. Qdc6+ {[%clk 00:00:58]} {[%emt
00:00:03]} Kb8 {[%clk 00:01:13]} {[%emt 00:00:01]} 74. Qd8+ {[%clk 00:01:00]}
{[%emt 00:00:02]} Ka7 {[%clk 00:01:18]} {[%emt 00:00:02]} 75. Qdb6# {[%clk
00:01:02]} {[%emt 00:00:02]} 1-0